[Event "21è Open International d'Echecs de Menton"]
[Site "Menton, France"]
[Date "2024.10.31"]
[Round "7.3"]
[White "Alexis, MUNIER 2099"]
[Black "David, LACAN-RUS 2257"]
[Result "0-1"]
[TimeControl "90'+30''/40m + 30'+30''"]
[BlackTitle "FM"]
[WhiteFideId "45162450"]
[BlackFideId "651023075"]
[WhiteElo "2099"]
[BlackElo "2257"]

1. e4 {[%clk 01:30:52]} {[%emt 00:00:07]} c5 {[%clk 01:30:53]} {[%emt
00:00:08]} 2. Nf3 {[%clk 01:31:15]} {[%emt 00:00:07]} Nc6 {[%clk 01:31:18]}
{[%emt 00:00:06]} 3. Bb5 {[%clk 01:31:40]} {[%emt 00:00:05]} Nf6 {[%clk
01:31:39]} {[%emt 00:00:08]} 4. e5 {[%clk 01:27:53]} {[%emt 00:04:18]} Nd5
{[%clk 01:32:06]} {[%emt 00:00:02]} 5. Nc3 {[%clk 01:28:09]} {[%emt 00:00:14]}
Nc7 {[%clk 01:32:27]} {[%emt 00:00:09]} 6. Bxc6 {[%clk 01:28:31]} {[%emt
00:00:09]} dxc6 {[%clk 01:32:50]} {[%emt 00:00:07]} 7. O-O {[%clk 01:28:46]}
{[%emt 00:00:14]} h6 {[%clk 01:31:57]} {[%emt 00:01:23]} 8. Re1 {[%clk
01:28:37]} {[%emt 00:00:39]} Bf5 {[%clk 01:31:45]} {[%emt 00:00:43]} 9. Ne4
{[%clk 01:28:10]} {[%emt 00:00:57]} Ne6 {[%clk 01:31:02]} {[%emt 00:01:13]} 10.
d3 {[%clk 01:28:30]} {[%emt 00:00:10]} g5 {[%clk 01:29:28]} {[%emt 00:02:05]}
11. h4 {[%clk 01:24:00]} {[%emt 00:05:00]} Bg4 {[%clk 01:15:51]} {[%emt
00:14:06]} 12. hxg5 {[%clk 01:22:43]} {[%emt 00:01:48]} hxg5 {[%clk 01:14:05]}
{[%emt 00:02:15]} 13. Bxg5 {[%clk 01:21:49]} {[%emt 00:01:24]} Qd7 {[%clk
01:09:20]} {[%emt 00:05:16]} 14. b4 {[%clk 01:05:55]} {[%emt 00:16:25]} O-O-O
{[%clk 00:56:32]} {[%emt 00:13:17]} 15. bxc5 {[%clk 01:00:44]} {[%emt
00:05:41]} Nd4 {[%clk 00:52:24]} {[%emt 00:04:38]} 16. e6 {[%clk 00:59:14]}
{[%emt 00:02:00]} Qc7 {[%clk 00:48:25]} {[%emt 00:04:29]} 17. Nd6+ {[%clk
00:56:40]} {[%emt 00:03:04]} Rxd6 {[%clk 00:45:28]} {[%emt 00:03:28]} 18. Bf4
{[%clk 00:55:36]} {[%emt 00:01:33]} Qa5 {[%clk 00:42:27]} {[%emt 00:03:30]} 19.
Bxd6 {[%clk 00:55:20]} {[%emt 00:00:46]} exd6 {[%clk 00:38:28]} {[%emt
00:04:30]} 20. exf7 {[%clk 00:51:32]} {[%emt 00:04:18]} Bxf3 {[%clk 00:27:25]}
{[%emt 00:11:33]} 21. Re8+ {[%clk 00:49:31]} {[%emt 00:02:31]} Kc7 {[%clk
00:25:19]} {[%emt 00:02:35]} 22. Qe1 {[%clk 00:41:28]} {[%emt 00:08:35]} Qxc5
{[%clk 00:23:49]} {[%emt 00:02:01]} 23. Rxf8 {[%emt 00:02:29]} Qg5 {[%emt
00:01:17]} 24. Qa5+ {[%clk 00:38:02]} {[%emt 00:00:10]} Qxa5 {[%clk 00:23:46]}
{[%emt 00:00:33]} 25. Rxh8 {[%clk 00:38:31]} {[%emt 00:00:01]} Qg5 {[%clk
00:20:39]} {[%emt 00:03:37]} 26. Rg8 {[%clk 00:35:22]} {[%emt 00:03:39]} Qh5
{[%clk 00:19:20]} {[%emt 00:01:49]} 27. Rc8+ {[%clk 00:31:39]} {[%emt
00:04:12]} Kb6 {[%clk 00:19:21]} {[%emt 00:00:29]} 0-1

[Event "21è Open International d'Echecs de Menton"]
[Site "Menton, France"]
[Date "2024.11.01"]
[Round "8.1"]
[White "Florian, JACOBS 2225"]
[Black "Jean-Marc, DEGRAEVE 2479"]
[Result "0-1"]
[TimeControl "90'+30''/40m + 30'+30''"]
[BlackTitle "GM"]
[WhiteFideId "1018329"]
[BlackFideId "600270"]
[WhiteElo "2225"]
[BlackElo "2479"]

1. d4 {[%clk 01:26:02]} {[%emt 00:04:57]} Nf6 {[%clk 01:30:42]} {[%emt
00:00:18]} 2. c4 {[%clk 01:26:23]} {[%emt 00:00:09]} g6 {[%clk 01:31:00]}
{[%emt 00:00:12]} 3. Nc3 {[%clk 01:26:44]} {[%emt 00:00:09]} Bg7 {[%clk
01:31:22]} {[%emt 00:00:07]} 4. e4 {[%clk 01:27:08]} {[%emt 00:00:05]} d6
{[%clk 01:31:43]} {[%emt 00:00:09]} 5. Nf3 {[%clk 01:27:33]} {[%emt 00:00:06]}
O-O {[%clk 01:32:03]} {[%emt 00:00:10]} 6. Be2 {[%clk 01:28:01]} {[%emt
00:00:02]} e5 {[%clk 01:32:20]} {[%emt 00:00:14]} 7. O-O {[%clk 01:28:22]}
{[%emt 00:00:08]} Bg4 {[%clk 01:32:27]} {[%emt 00:00:23]} 8. d5 {[%clk
01:27:46]} {[%emt 00:01:07]} a5 {[%clk 01:32:49]} {[%emt 00:00:08]} 9. Bg5
{[%clk 01:17:46]} {[%emt 00:10:29]} Na6 {[%clk 01:30:27]} {[%emt 00:02:53]} 10.
h3 {[%emt 00:01:31]} Bd7 {[%emt 00:06:34]} 11. a3 {[%emt 00:07:28]} h6 {[%clk
01:25:41]} {[%emt 00:00:06]} 12. Be3 {[%clk 01:08:51]} {[%emt 00:00:31]} a4
{[%emt 00:16:02]} 13. Nd2 {[%clk 00:47:36]} {[%emt 00:06:00]} Nc5 {[%clk
01:26:05]} {[%emt 00:00:19]} 14. Qc2 {[%clk 00:47:59]} {[%emt 00:00:08]} b6
{[%clk 01:25:39]} {[%emt 00:00:57]} 15. b4 {[%clk 00:39:07]} {[%emt 00:09:22]}
axb3 {[%clk 01:25:32]} {[%emt 00:00:36]} 16. Nxb3 {[%clk 00:39:35]} {[%emt
00:00:02]} Ne8 {[%clk 01:11:58]} {[%emt 00:14:04]} 17. Nxc5 {[%clk 00:39:53]}
{[%emt 00:00:13]} bxc5 {[%emt 00:01:59]} 18. Qd2 {[%clk 00:35:46]} {[%emt
00:02:39]} Qh4 {[%emt 00:03:26]} 19. a4 {[%clk 00:33:48]} {[%emt 00:00:38]} Nf6
{[%clk 01:04:41]} {[%emt 00:07:08]} 20. Ra2 {[%clk 00:18:28]} {[%emt 00:15:50]}
Nxe4 {[%clk 01:02:41]} {[%emt 00:02:30]} 21. Nxe4 {[%clk 00:18:29]} {[%emt
00:00:29]} Qxe4 {[%clk 01:03:10]} {[%emt 00:00:02]} 22. Bxh6 {[%clk 00:13:16]}
{[%emt 00:05:43]} Bxh6 {[%clk 01:01:52]} {[%emt 00:01:48]} 23. Qxh6 {[%clk
00:13:43]} {[%emt 00:00:02]} Rxa4 {[%clk 01:02:12]} {[%emt 00:00:11]} 24. Rxa4
{[%clk 00:09:54]} {[%emt 00:04:19]} Bxa4 {[%clk 01:02:22]} {[%emt 00:00:20]} 25.
Qd2 {[%clk 00:10:17]} {[%emt 00:00:06]} Rb8 {[%clk 01:01:12]} {[%emt 00:01:40]}
26. Re1 {[%clk 00:09:39]} {[%emt 00:01:09]} Rb1 {[%clk 01:00:31]} {[%emt
00:01:11]} 27. Rxb1 {[%clk 00:09:22]} {[%emt 00:00:47]} Qxb1+ {[%clk 01:00:59]}
{[%emt 00:00:02]} 28. Kh2 {[%clk 00:09:51]} {[%emt 00:00:01]} Qc2 {[%clk
01:00:59]} {[%emt 00:00:30]} 29. Qe3 {[%clk 00:09:25]} {[%emt 00:00:57]} Bb3
{[%clk 01:00:40]} {[%emt 00:00:49]} 30. Bd3 {[%clk 00:08:33]} {[%emt 00:01:21]}
Qc3 {[%clk 01:01:00]} {[%emt 00:00:09]} 31. Qe2 {[%clk 00:08:51]} {[%emt
00:00:12]} Qd4 {[%clk 01:01:10]} {[%emt 00:00:20]} 32. f3 {[%clk 00:07:11]}
{[%emt 00:02:10]} Kg7 {[%clk 00:59:55]} {[%emt 00:01:45]} 33. g3 {[%clk
00:07:12]} {[%emt 00:00:30]} Ba4 {[%clk 00:43:55]} {[%emt 00:16:30]} 34. g4
{[%clk 00:04:33]} {[%emt 00:03:09]} Bd7 {[%clk 00:39:36]} {[%emt 00:04:48]} 35.
h4 {[%clk 00:03:47]} {[%emt 00:01:16]} f5 {[%clk 00:39:12]} {[%emt 00:00:54]}
36. Kh3 {[%clk 00:01:17]} {[%emt 00:02:59]} fxg4+ {[%clk 00:37:25]} {[%emt
00:02:17]} 37. fxg4 {[%clk 00:01:40]} {[%emt 00:00:07]} Bxg4+ {[%clk 00:37:47]}
{[%emt 00:00:09]} 38. Qxg4 {[%clk 00:02:06]} {[%emt 00:00:04]} Qxd3+ {[%clk
00:38:12]} {[%emt 00:00:05]} 39. Kh2 {[%clk 00:02:30]} {[%emt 00:00:07]} Qf5
{[%clk 00:38:37]} {[%emt 00:00:04]} 40. Qe2 {[%clk 00:02:29]} {[%emt 00:00:31]}
Qh5 {[%clk 00:34:06]} {[%emt 00:05:00]} 41. Qe4 {[%clk 00:01:08]} {[%emt
00:01:51]} g5 {[%clk 00:34:24]} {[%emt 00:00:13]} 42. Qf5 {[%clk 00:01:25]}
{[%emt 00:00:13]} Qxh4+ {[%clk 00:34:45]} {[%emt 00:00:08]} 43. Kg2 {[%clk
00:01:48]} {[%emt 00:00:07]} Qf4 {[%clk 00:35:10]} {[%emt 00:00:06]} 44. Qd7+
{[%clk 00:02:12]} {[%emt 00:00:06]} Qf7 {[%clk 00:35:34]} {[%emt 00:00:05]} 45.
Qd8 {[%clk 00:02:24]} {[%emt 00:00:19]} e4 {[%clk 00:34:49]} {[%emt 00:01:15]}
46. Kh1 {[%clk 00:02:31]} {[%emt 00:00:23]} Kg6 {[%clk 00:34:46]} {[%emt
00:00:32]} 47. Qc8 {[%clk 00:01:37]} {[%emt 00:01:24]} e3 {[%clk 00:34:37]}
{[%emt 00:00:39]} 48. Qh3 {[%clk 00:01:46]} {[%emt 00:00:21]} e2 {[%clk
00:34:32]} {[%emt 00:00:34]} 49. Qd3+ {[%clk 00:01:32]} {[%emt 00:00:45]} Kh6
{[%clk 00:34:57]} {[%emt 00:00:05]} 50. Qc3 {[%clk 00:00:58]} {[%emt 00:01:04]}
Qf1+ {[%clk 00:34:41]} {[%emt 00:00:46]} 51. Kh2 {[%clk 00:01:20]} {[%emt
00:00:08]} Qf2+ {[%clk 00:35:07]} {[%emt 00:00:04]} 52. Kh3 {[%clk 00:01:41]}
{[%emt 00:00:10]} g4+ {[%clk 00:35:30]} {[%emt 00:00:07]} 53. Kxg4 {[%clk
00:02:03]} {[%emt 00:00:08]} Qd4+ {[%emt 00:00:09]} 0-1

[Event "21è Open International d'Echecs de Menton"]
[Site "Menton, France"]
[Date "2024.11.01"]
[Round "8.2"]
[White "Paolo, FORMENTO 2346"]
[Black "David, LACAN-RUS 2257"]
[Result "1/2-1/2"]
[TimeControl "90'+30''/40m + 30'+30''"]
[WhiteTitle "FM"]
[BlackTitle "FM"]
[WhiteFideId "861162"]
[BlackFideId "651023075"]
[WhiteElo "2346"]
[BlackElo "2257"]

1. d4 {[%clk 01:25:09]} {[%emt 00:05:50]} Nf6 {[%clk 01:30:19]} {[%emt
00:00:41]} 2. c4 {[%clk 01:25:15]} {[%emt 00:00:25]} e6 {[%clk 01:30:35]}
{[%emt 00:00:13]} 3. g3 {[%clk 01:24:30]} {[%emt 00:01:14]} d5 {[%clk
01:30:19]} {[%emt 00:00:40]} 4. Bg2 {[%clk 01:24:39]} {[%emt 00:00:27]} Be7
{[%clk 01:30:41]} {[%emt 00:00:08]} 5. Nf3 {[%clk 01:24:51]} {[%emt 00:00:19]}
O-O {[%clk 01:31:03]} {[%emt 00:00:08]} 6. Nc3 {[%clk 01:25:05]} {[%emt
00:00:16]} Nbd7 {[%clk 01:28:56]} {[%emt 00:02:36]} 7. O-O {[%clk 01:22:32]}
{[%emt 00:03:03]} dxc4 {[%clk 01:29:16]} {[%emt 00:00:10]} 8. e4 {[%clk
01:18:54]} {[%emt 00:04:09]} c5 {[%clk 01:26:12]} {[%emt 00:03:34]} 9. dxc5
{[%clk 00:46:36]} {[%emt 00:32:49]} Nxc5 {[%clk 01:25:30]} {[%emt 00:01:11]} 10.
Qxd8 {[%clk 00:46:49]} {[%emt 00:00:18]} Rxd8 {[%clk 01:25:50]} {[%emt
00:00:09]} 11. Ne5 {[%clk 00:47:16]} {[%emt 00:00:04]} Bd7 {[%clk 01:18:14]}
{[%emt 00:08:05]} 12. Nxc4 {[%clk 00:40:30]} {[%emt 00:07:16]} Be8 {[%clk
01:06:43]} {[%emt 00:12:01]} 13. e5 {[%clk 00:31:07]} {[%emt 00:09:53]} Nfd7
{[%clk 01:01:02]} {[%emt 00:06:11]} 14. Be3 {[%clk 00:15:18]} {[%emt 00:16:20]}
Nd3 {[%clk 00:52:07]} {[%emt 00:09:24]} 15. Rfd1 {[%clk 00:13:49]} {[%emt
00:02:00]} N7xe5 {[%clk 00:48:16]} {[%emt 00:04:20]} 16. Nxe5 {[%clk 00:13:57]}
{[%emt 00:00:23]} Nxe5 {[%clk 00:48:45]} {[%emt 00:00:01]} 17. Rxd8 {[%clk
00:12:14]} {[%emt 00:02:13]} Rxd8 {[%clk 00:42:08]} {[%emt 00:07:06]} 18. Bxb7
{[%clk 00:12:28]} {[%emt 00:00:17]} Rb8 {[%clk 00:40:53]} {[%emt 00:01:45]} 19.
Bg2 {[%clk 00:12:21]} {[%emt 00:00:38]} Rxb2 {[%clk 00:40:03]} {[%emt
00:01:19]} 20. Bxa7 {[%clk 00:09:18]} {[%emt 00:03:34]} Rc2 {[%clk 00:30:55]}
{[%emt 00:09:37]} 21. Nd1 {[%clk 00:09:46]} {[%emt 00:00:01]} Bf6 {[%clk
00:28:27]} {[%emt 00:02:58]} 22. Ne3 {[%clk 00:04:49]} {[%emt 00:05:27]}
1/2-1/2

[Event "21è Open International d'Echecs de Menton"]
[Site "Menton, France"]
[Date "2024.11.01"]
[Round "8.3"]
[White "Louis, AURIBAULT 2108"]
[Black "Jean-Philippe, DUQUESNOY 2073"]
[Result "1-0"]
[TimeControl "90'+30''/40m + 30'+30''"]
[WhiteTitle "FM"]
[WhiteFideId "45196591"]
[BlackFideId "605166"]
[WhiteElo "2108"]
[BlackElo "2073"]

1. e4 {[%clk 01:30:54]} {[%emt 00:00:05]} c5 {[%clk 01:23:37]} {[%emt
00:07:18]} 2. Nf3 {[%clk 01:30:47]} {[%emt 00:00:43]} d6 {[%clk 01:24:03]}
{[%emt 00:00:05]} 3. d4 {[%clk 01:29:56]} {[%emt 00:01:20]} cxd4 {[%clk
01:24:28]} {[%emt 00:00:06]} 4. Nxd4 {[%clk 01:29:00]} {[%emt 00:01:25]} Nf6
{[%clk 01:24:53]} {[%emt 00:00:05]} 5. Nc3 {[%clk 01:28:36]} {[%emt 00:00:54]}
g6 {[%clk 01:25:19]} {[%emt 00:00:05]} 6. Be3 {[%clk 01:25:18]} {[%emt
00:03:47]} Nc6 {[%clk 01:23:46]} {[%emt 00:02:04]} 7. f3 {[%clk 01:23:14]}
{[%emt 00:02:34]} h5 {[%clk 01:23:14]} {[%emt 00:01:03]} 8. Qd2 {[%clk
01:22:42]} {[%emt 00:01:02]} Nxd4 {[%clk 01:23:35]} {[%emt 00:00:08]} 9. Bxd4
{[%clk 01:22:59]} {[%emt 00:00:13]} Bh6 {[%clk 01:24:00]} {[%emt 00:00:05]} 10.
Bb5+ {[%clk 01:22:11]} {[%emt 00:01:18]} Bd7 {[%clk 01:24:14]} {[%emt
00:00:16]} 11. Qe2 {[%clk 01:22:20]} {[%emt 00:00:21]} Bc6 {[%clk 01:23:27]}
{[%emt 00:01:18]} 12. Rd1 {[%clk 01:21:34]} {[%emt 00:01:16]} O-O {[%clk
01:05:24]} {[%emt 00:18:32]} 13. O-O {[%clk 01:07:25]} {[%emt 00:14:39]} Qa5
{[%clk 00:58:59]} {[%emt 00:06:55]} 14. Bc4 {[%clk 00:53:58]} {[%emt 00:13:58]}
Rac8 {[%clk 00:45:32]} {[%emt 00:13:58]} 15. Bb3 {[%clk 00:51:39]} {[%emt
00:02:49]} b5 {[%clk 00:43:34]} {[%emt 00:02:28]} 16. Nd5 {[%clk 00:49:13]}
{[%emt 00:02:56]} Bxd5 {[%clk 00:40:54]} {[%emt 00:03:10]} 17. exd5 {[%clk
00:49:24]} {[%emt 00:00:20]} Rc7 {[%clk 00:34:56]} {[%emt 00:06:28]} 18. f4
{[%clk 00:37:38]} {[%emt 00:12:16]} b4 {[%clk 00:23:26]} {[%emt 00:12:00]} 19.
f5 {[%clk 00:36:20]} {[%emt 00:01:48]} Bg7 {[%clk 00:11:10]} {[%emt 00:12:46]}
20. fxg6 {[%clk 00:35:41]} {[%emt 00:01:08]} fxg6 {[%clk 00:11:35]} {[%emt
00:00:05]} 21. Qe6+ {[%clk 00:33:49]} {[%emt 00:02:21]} Kh7 {[%clk 00:11:24]}
{[%emt 00:00:42]} 22. g4 {[%clk 00:32:51]} {[%emt 00:01:28]} hxg4 {[%clk
00:08:43]} {[%emt 00:03:11]} 23. h3 {[%clk 00:33:02]} {[%emt 00:00:19]} Qa6
{[%clk 00:07:50]} {[%emt 00:01:23]} 24. Rd3 {[%clk 00:21:00]} {[%emt 00:12:32]}
Qc8 {[%clk 00:07:52]} {[%emt 00:00:28]} 25. hxg4 {[%clk 00:15:57]} {[%emt
00:05:33]} Qxe6 {[%clk 00:08:15]} {[%emt 00:00:07]} 26. dxe6 {[%clk 00:16:26]}
Nxg4 {[%clk 00:04:42]} {[%emt 00:04:03]} 27. Rf7 {[%clk 00:14:39]} {[%emt
00:02:17]} Rg8 {[%clk 00:02:02]} {[%emt 00:03:10]} 28. Rh3+ {[%clk 00:14:09]}
{[%emt 00:01:00]} Nh6 {[%clk 00:02:29]} {[%emt 00:00:03]} 29. c3 {[%clk
00:14:16]} {[%emt 00:00:22]} bxc3 {[%clk 00:02:20]} {[%emt 00:00:40]} 30. Be3
{[%clk 00:14:03]} {[%emt 00:00:43]} g5 {[%emt 00:00:43]} 31. Bc2+ Rh8 {[%emt
00:00:35]} 1-0

[Event "21è Open International d'Echecs de Menton"]
[Site "Menton, France"]
[Date "2024.11.02"]
[Round "9.1"]
[White "Jean-Marc, DEGRAEVE 2479"]
[Black "Matteo, RATIER-FONTANA 2146"]
[Result "1-0"]
[TimeControl "90'+30''/40m + 30'+30''"]
[WhiteTitle "GM"]
[WhiteFideId "600270"]
[BlackFideId "36035319"]
[WhiteElo "2479"]
[BlackElo "2146"]

1. e4 {[%clk 01:30:57]} {[%emt 00:00:02]} c6 {[%clk 01:30:50]} {[%emt
00:00:11]} 2. d4 {[%clk 01:30:50]} {[%emt 00:00:36]} d5 {[%clk 01:31:09]}
{[%emt 00:00:09]} 3. exd5 {[%clk 01:31:03]} {[%emt 00:00:19]} cxd5 {[%clk
01:31:33]} {[%emt 00:00:06]} 4. Bd3 {[%clk 01:31:25]} {[%emt 00:00:08]} Nc6
{[%clk 01:31:39]} {[%emt 00:00:24]} 5. c3 {[%clk 01:31:49]} {[%emt 00:00:06]}
e6 {[%clk 01:31:11]} {[%emt 00:00:58]} 6. Bf4 {[%clk 01:31:56]} {[%emt
00:00:23]} Bd6 {[%clk 01:30:14]} {[%emt 00:01:26]} 7. Bxd6 {[%clk 01:32:18]}
{[%emt 00:00:08]} Qxd6 {[%clk 01:30:40]} {[%emt 00:00:05]} 8. Nf3 {[%clk
01:32:40]} {[%emt 00:00:09]} Nge7 {[%clk 01:28:51]} {[%emt 00:02:19]} 9. O-O
{[%clk 01:32:25]} {[%emt 00:00:45]} f6 {[%clk 01:28:30]} {[%emt 00:00:51]} 10.
c4 {[%clk 01:29:15]} {[%emt 00:03:39]} O-O {[%clk 01:25:53]} {[%emt 00:03:07]}
11. Nc3 {[%clk 01:29:35]} {[%emt 00:00:11]} dxc4 {[%clk 01:12:42]} {[%emt
00:13:41]} 12. Bxc4 {[%clk 01:29:48]} {[%emt 00:00:16]} Nd5 {[%clk 01:12:46]}
{[%emt 00:00:26]} 13. Re1 {[%clk 01:22:11]} {[%emt 00:08:07]} Nxc3 {[%clk
01:04:54]} {[%emt 00:08:22]} 14. bxc3 {[%clk 01:22:10]} {[%emt 00:00:31]} Bd7
{[%clk 01:04:56]} {[%emt 00:00:28]} 15. Bd3 {[%clk 01:21:15]} {[%emt 00:01:26]}
Rab8 {[%clk 00:55:36]} {[%emt 00:09:50]} 16. Qc2 {[%clk 01:19:26]} {[%emt
00:02:19]} h6 {[%clk 00:55:56]} {[%emt 00:00:10]} 17. Qe2 {[%clk 01:19:54]}
{[%emt 00:00:02]} Ne7 {[%clk 00:52:51]} {[%emt 00:03:35]} 18. Qe4 {[%clk
01:19:48]} {[%emt 00:00:35]} Kf7 {[%clk 00:49:14]} {[%emt 00:04:06]} 19. c4
{[%clk 01:10:46]} {[%emt 00:09:33]} Bc6 {[%clk 00:42:25]} {[%emt 00:07:19]} 20.
d5 {[%clk 01:10:24]} {[%emt 00:00:51]} exd5 {[%clk 00:42:53]} {[%emt 00:00:03]}
21. cxd5 {[%clk 01:10:49]} {[%emt 00:00:05]} Bxd5 {[%clk 00:41:03]} {[%emt
00:02:20]} 22. Bc4 {[%clk 01:11:09]} {[%emt 00:00:11]} Bxc4 {[%clk 00:40:10]}
{[%emt 00:01:23]} 23. Qxc4+ {[%clk 01:11:36]} {[%emt 00:00:02]} Nd5 {[%clk
00:39:53]} {[%emt 00:00:47]} 24. Rad1 {[%clk 01:12:00]} {[%emt 00:00:06]} Rfd8
{[%clk 00:38:43]} {[%emt 00:01:40]} 25. Nd4 {[%clk 01:04:48]} {[%emt 00:07:42]}
Rbc8 {[%clk 00:36:59]} {[%emt 00:02:14]} 26. Qb3 {[%clk 01:04:00]} {[%emt
00:01:18]} Qb4 {[%clk 00:26:39]} {[%emt 00:10:50]} 27. Ne6 {[%clk 01:03:40]}
{[%emt 00:00:50]} Qxb3 {[%clk 00:22:30]} {[%emt 00:04:39]} 28. Nxd8+ {[%clk
01:03:47]} {[%emt 00:00:23]} Rxd8 {[%clk 00:22:57]} {[%emt 00:00:03]} 29. axb3
{[%clk 01:04:11]} {[%emt 00:00:06]} Rd7 {[%clk 00:23:24]} {[%emt 00:00:03]} 30.
Re4 {[%clk 01:03:40]} {[%emt 00:01:00]} Rc7 {[%clk 00:23:13]} {[%emt 00:00:41]}
31. Rc4 {[%clk 01:03:48]} {[%emt 00:00:21]} Re7 {[%clk 00:23:42]} {[%emt
00:00:02]} 32. Kf1 {[%clk 01:03:49]} {[%emt 00:00:29]} Nb6 {[%clk 00:23:33]}
{[%emt 00:00:40]} 33. Rc5 {[%clk 01:03:58]} {[%emt 00:00:20]} Kg6 {[%clk
00:21:42]} {[%emt 00:02:21]} 34. Rd3 {[%clk 01:03:36]} {[%emt 00:00:52]} Kh7
{[%clk 00:20:33]} {[%emt 00:01:39]} 35. h4 {[%clk 01:03:08]} {[%emt 00:00:58]}
Kg6 {[%clk 00:18:21]} {[%emt 00:02:42]} 36. h5+ {[%clk 01:02:59]} {[%emt
00:00:40]} Kf7 {[%clk 00:17:27]} {[%emt 00:01:23]} 37. Rdc3 {[%clk 01:03:10]}
{[%emt 00:00:19]} Ke8 {[%clk 00:17:09]} {[%emt 00:00:48]} 38. Rc7 {[%clk
01:00:25]} {[%emt 00:03:14]} Nd5 {[%clk 00:17:35]} {[%emt 00:00:06]} 39. Rxe7+
{[%clk 01:00:48]} {[%emt 00:00:07]} Kxe7 {[%clk 00:18:01]} {[%emt 00:00:04]} 40.
Rc8 {[%clk 01:01:12]} {[%emt 00:00:06]} 1-0

[Event "21è Open International d'Echecs de Menton"]
[Site "Menton, France"]
[Date "2024.11.02"]
[Round "9.3"]
[White "David, LACAN-RUS 2257"]
[Black "Christophe, KELLER 1957"]
[Result "1-0"]
[TimeControl "90'+30''/40m + 30'+30''"]
[WhiteTitle "FM"]
[WhiteFideId "651023075"]
[BlackFideId "604348"]
[WhiteElo "2257"]
[BlackElo "1957"]

1. d4 {[%clk 01:30:57]} {[%emt 00:00:01]} e6 {[%clk 01:30:46]} {[%emt
00:00:14]} 2. c4 {[%clk 01:31:18]} {[%emt 00:00:08]} b6 {[%clk 01:31:13]}
{[%emt 00:00:05]} 3. a3 {[%clk 01:31:40]} {[%emt 00:00:08]} Bb7 {[%clk
01:31:06]} {[%emt 00:00:37]} 4. d5 {[%clk 01:32:01]} {[%emt 00:00:09]} f5
{[%clk 01:25:41]} {[%emt 00:05:55]} 5. Nc3 {[%clk 01:30:38]} {[%emt 00:01:53]}
Nf6 {[%clk 01:25:38]} {[%emt 00:00:33]} 6. Nf3 {[%clk 01:30:43]} {[%emt
00:00:24]} Bd6 {[%clk 01:25:15]} {[%emt 00:00:54]} 7. e3 {[%clk 01:23:25]}
{[%emt 00:07:48]} Na6 {[%clk 01:19:16]} {[%emt 00:06:29]} 8. b4 {[%clk
01:16:34]} {[%emt 00:07:21]} c5 {[%clk 01:16:13]} {[%emt 00:03:33]} 9. dxc6
{[%clk 01:12:17]} {[%emt 00:04:46]} dxc6 {[%clk 01:16:33]} {[%emt 00:00:10]} 10.
Be2 {[%clk 01:02:40]} {[%emt 00:10:07]} e5 {[%clk 01:06:55]} {[%emt 00:10:09]}
11. Qc2 {[%clk 01:00:58]} {[%emt 00:02:11]} e4 {[%clk 01:01:14]} {[%emt
00:06:12]} 12. Nd4 {[%clk 01:01:06]} {[%emt 00:00:21]} Qd7 {[%clk 01:00:40]}
{[%emt 00:01:05]} 13. Bb2 {[%clk 00:50:37]} {[%emt 00:10:58]} c5 {[%clk
00:49:45]} {[%emt 00:11:25]} 14. Ndb5 {[%clk 00:49:54]} {[%emt 00:01:13]} Be5
{[%clk 00:46:29]} {[%emt 00:03:46]} 15. Rd1 {[%clk 00:49:49]} {[%emt 00:00:34]}
Qe7 {[%clk 00:46:25]} {[%emt 00:00:35]} 16. Nd5 {[%clk 00:46:09]} {[%emt
00:04:09]} Nxd5 {[%clk 00:40:35]} {[%emt 00:06:21]} 17. cxd5 {[%clk 00:46:33]}
{[%emt 00:00:07]} Qf6 {[%clk 00:30:26]} {[%emt 00:10:39]} 18. Bxe5 {[%clk
00:45:27]} {[%emt 00:01:36]} Qxe5 {[%clk 00:30:50]} {[%emt 00:00:06]} 19. d6
{[%clk 00:45:39]} {[%emt 00:00:18]} O-O {[%clk 00:29:41]} {[%emt 00:01:39]} 20.
d7 {[%clk 00:45:43]} {[%emt 00:00:26]} cxb4 {[%clk 00:28:53]} {[%emt 00:01:17]}
21. Bc4+ {[%clk 00:44:44]} {[%emt 00:01:29]} Kh8 {[%clk 00:28:53]} {[%emt
00:00:30]} 22. Nd6 {[%clk 00:45:01]} {[%emt 00:00:12]} b3 {[%clk 00:27:02]}
{[%emt 00:02:22]} 23. d8=Q {[%clk 00:40:35]} {[%emt 00:04:56]} Qa5+ {[%clk
00:19:29]} {[%emt 00:08:03]} 24. Qd2 {[%clk 00:40:06]} {[%emt 00:01:00]} Raxd8
{[%clk 00:19:44]} {[%emt 00:00:15]} 25. Qxa5 {[%clk 00:40:29]} {[%emt
00:00:07]} 1-0